[Event "FIDE Grand Swiss 2023"]
[Site "Villa Marina, Douglas, Isle of Man"]
[Date "2023.10.25"]
[Round "1.11"]
[White "Kollars, Dmitrij"]
[Black "Yu, Yangyi"]
[Result "0-1"]
[WhiteElo "2633"]
[BlackElo "2720"]
[EventDate "2023.10.25"]
[ECO "B42"]
[PlyCount "94"]
[BlackFideId "8603820"]
[TimeControl "40/100 + 20/50 + 15 + 30s/move"]
[WhiteFideId "12909572"]

1.e4 {[%clk 01:40:55] [%emt 00:00:04]} 1...c5 {[%clk 01:40:52] [%emt 00:00:08]} 
2.Nf3 {[%clk 01:41:10] [%emt 00:00:15]} 2...e6 {[%clk 01:41:08] [%emt 00:00:14]} 
3.d4 {[%clk 01:41:10] [%emt 00:00:31]} 3...cxd4 {[%clk 01:41:26] [%emt
00:00:12]} 4.Nxd4 {[%clk 01:41:34] [%emt 00:00:05]} 4...a6 {[%clk 01:41:30]
[%emt 00:00:27]} 5.Bd3 {[%clk 01:40:14] [%emt 00:01:49]} 5...Bc5 {[%clk
01:41:39] [%emt 00:00:21]} 6.Nb3 {[%clk 01:40:20] [%emt 00:00:25]} 6...Ba7 
{[%clk 01:41:52] [%emt 00:00:16]} 7.Qe2 {[%clk 01:37:23] [%emt 00:03:27]} 
7...Ne7 {[%clk 01:41:56] [%emt 00:00:26]} 8.Be3 {[%clk 01:34:08] [%emt
00:03:45]} 8...O-O {[%clk 01:42:09] [%emt 00:00:17]} 9.Nc3 {[%clk 01:28:29]
[%emt 00:06:10]} 9...b5 {[%clk 01:41:57] [%emt 00:00:42]} 10.O-O-O {[%clk
01:24:26] [%emt 00:04:32]} 10...b4 {[%clk 01:39:24] [%emt 00:03:04]} 11.Na4 
{[%clk 01:22:59] [%emt 00:01:56]} 11...d6 {[%clk 01:39:14] [%emt 00:00:40]} 
12.e5 {[%clk 01:06:07] [%emt 00:17:22]} 12...Nd5 {[%clk 01:38:27] [%emt
00:01:18]} 13.exd6 {[%clk 01:01:10] [%emt 00:05:26]} 13...Qxd6 {[%clk 01:37:48]
[%emt 00:01:08]} 14.Be4 {[%clk 00:54:24] [%emt 00:07:17]} 14...Nd7 {[%clk
01:33:38] [%emt 00:04:40]} 15.Bxd5 {[%clk 00:45:50] [%emt 00:09:04]} 15...exd5 
{[%clk 01:33:28] [%emt 00:00:40]} 16.Bxa7 {[%clk 00:46:06] [%emt 00:00:15]} 
16...Rxa7 {[%clk 01:33:50] [%emt 00:00:08]} 17.Qe3 {[%clk 00:44:41] [%emt
00:01:54]} 17...Rc7 {[%clk 01:29:27] [%emt 00:04:53]} 18.Nd4 {[%clk 00:42:34]
[%emt 00:02:37]} 18...Ne5 {[%clk 01:19:11] [%emt 00:10:45]} 19.Rhe1 {[%clk
00:37:18] [%emt 00:05:47]} 19...f6 {[%clk 01:12:18] [%emt 00:07:23]} 20.b3 
{[%clk 00:36:38] [%emt 00:01:10]} 20...Bd7 {[%clk 01:10:37] [%emt 00:02:11]} 
21.Nb2 {[%clk 00:32:29] [%emt 00:04:38]} 21...Rc3 {[%clk 01:05:25] [%emt
00:05:42]} 22.Qd2 {[%clk 00:30:13] [%emt 00:02:47]} 22...Rfc8 {[%clk 01:03:19]
[%emt 00:02:37]} 23.Kb1 {[%clk 00:28:48] [%emt 00:01:56]} 23...a5 {[%clk
00:56:02] [%emt 00:07:46]} 24.f4 {[%clk 00:26:30] [%emt 00:02:46]} 24...Nf7 
{[%clk 00:48:15] [%emt 00:08:17]} 25.g3 {[%clk 00:26:37] [%emt 00:00:24]} 
25...h5 {[%clk 00:43:49] [%emt 00:04:57]} 26.Re3 {[%clk 00:15:39] [%emt
00:11:28]} 26...Qc5 {[%clk 00:39:07] [%emt 00:05:12]} 27.Qe1 {[%clk 00:10:07]
[%emt 00:06:02]} 27...Rxe3 {[%clk 00:32:24] [%emt 00:07:13]} 28.Qxe3 {[%clk
00:10:33] [%emt 00:00:04]} 28...Re8 {[%clk 00:32:10] [%emt 00:00:43]} 29.Nd3 
{[%clk 00:06:50] [%emt 00:04:13]} 29...Qc3 {[%clk 00:26:39] [%emt 00:05:59]} 
30.Qf2 {[%clk 00:06:39] [%emt 00:00:42]} 30...Nd6 {[%clk 00:25:43] [%emt
00:01:26]} 31.Ne2 {[%clk 00:06:56] [%emt 00:00:13]} 31...Qc7 {[%clk 00:19:47]
[%emt 00:06:27]} 32.Re1 {[%clk 00:05:56] [%emt 00:01:30]} 32...Bg4 {[%clk
00:19:11] [%emt 00:01:05]} 33.Ng1 {[%clk 00:04:12] [%emt 00:02:15]} 33...Rc8 
{[%clk 00:18:53] [%emt 00:00:48]} 34.Rc1 {[%clk 00:04:06] [%emt 00:00:36]} 
34...Nb5 {[%clk 00:17:38] [%emt 00:01:45]} 35.Qd2 {[%clk 00:03:22] [%emt
00:01:14]} 35...Qb6 {[%clk 00:12:59] [%emt 00:05:10]} 36.Qf2 {[%clk 00:02:19]
[%emt 00:01:32]} 36...Qc6 {[%clk 00:11:23] [%emt 00:02:06]} 37.Qd2 {[%clk
00:02:12] [%emt 00:00:37]} 37...d4 {[%clk 00:08:17] [%emt 00:03:37]} 38.a4 
{[%clk 00:01:36] [%emt 00:01:05]} 38...Nc3+ {[%clk 00:07:17] [%emt 00:01:30]} 
39.Kb2 {[%clk 00:00:59] [%emt 00:01:07]} 39...Bf5 {[%clk 00:04:38] [%emt
00:03:09]} 40.Ne1 {[%clk 00:00:42] [%emt 00:00:47]} 40...Rd8 {[%clk 00:01:53]
[%emt 00:03:15]} 41.Nd3 {[%clk 00:49:29] [%emt 00:01:43]} 41...Re8 {[%clk
00:47:07] [%emt 00:05:16]} 42.Nf2 {[%clk 00:47:51] [%emt 00:02:07]} 42...Ne4 
{[%clk 00:41:41] [%emt 00:05:56]} 43.Nxe4 {[%clk 00:46:17] [%emt 00:02:05]} 
43...Rxe4 {[%clk 00:40:18] [%emt 00:01:53]} 44.Ka2 {[%clk 00:40:20] [%emt
00:06:28]} 44...Qc3 {[%clk 00:38:22] [%emt 00:02:26]} 45.Qd1 {[%clk 00:39:54]
[%emt 00:00:56]} 45...Bg4 {[%clk 00:35:21] [%emt 00:03:30]} 46.Qf1 {[%clk
00:39:38] [%emt 00:00:45]} 46...Re3 {[%clk 00:35:05] [%emt 00:00:46]} 47.h3 
{[%emt 00:01:52]} 47...Be6 {[%clk 00:34:04] [%emt 00:01:11]} 0-1

[Event "FIDE Grand Swiss 2023"]
[Site "Villa Marina, Douglas, Isle of Man"]
[Date "2023.10.25"]
[Round "1.12"]
[White "Keymer, Vincent"]
[Black "Murzin, Volodar"]
[Result "1/2-1/2"]
[WhiteElo "2717"]
[BlackElo "2633"]
[EventDate "2023.10.25"]
[ECO "D35"]
[PlyCount "85"]
[BlackFideId "44155573"]
[TimeControl "40/100 + 20/50 + 15 + 30s/move"]
[WhiteFideId "12940690"]

1.d4 {[%clk 01:40:57] [%emt 00:00:02]} 1...d5 {[%clk 01:40:54] [%emt 00:00:07]} 
2.c4 {[%clk 01:41:23] [%emt 00:00:04]} 2...e6 {[%clk 01:41:15] [%emt 00:00:09]} 
3.Nc3 {[%clk 01:41:49] [%emt 00:00:04]} 3...Nf6 {[%clk 01:41:34] [%emt
00:00:11]} 4.cxd5 {[%clk 01:39:53] [%emt 00:02:26]} 4...exd5 {[%clk 01:42:00]
[%emt 00:00:03]} 5.Bg5 {[%clk 01:36:46] [%emt 00:03:38]} 5...c6 {[%clk 01:42:24]
[%emt 00:00:06]} 6.e3 {[%clk 01:37:10] [%emt 00:00:06]} 6...h6 {[%clk 01:42:46]
[%emt 00:00:08]} 7.Bh4 {[%clk 01:37:35] [%emt 00:00:05]} 7...Be7 {[%clk
01:42:53] [%emt 00:00:23]} 8.Bd3 {[%clk 01:37:46] [%emt 00:00:19]} 8...O-O 
{[%clk 01:43:02] [%emt 00:00:21]} 9.Bg3 {[%clk 01:36:29] [%emt 00:01:46]} 
9...Ne8 {[%clk 01:35:57] [%emt 00:07:36]} 10.Nf3 {[%clk 01:33:18] [%emt
00:03:41]} 10...Nd6 {[%clk 01:32:34] [%emt 00:03:53]} 11.Qc2 {[%clk 01:29:46]
[%emt 00:04:02]} 11...a5 {[%clk 01:29:31] [%emt 00:03:33]} 12.O-O {[%clk
01:28:40] [%emt 00:01:35]} 12...Na6 {[%clk 01:29:47] [%emt 00:00:14]} 13.a3 
{[%clk 01:28:46] [%emt 00:00:25]} 13...Re8 {[%clk 01:26:47] [%emt 00:03:30]} 
14.h3 {[%clk 01:22:27] [%emt 00:06:49]} 14...Bf8 {[%clk 01:14:10] [%emt
00:13:07]} 15.Rad1 {[%clk 01:17:03] [%emt 00:05:55]} 15...Nc7 {[%clk 01:03:21]
[%emt 00:11:18]} 16.Ne5 {[%clk 01:15:41] [%emt 00:01:51]} 16...Be6 {[%clk
00:41:24] [%emt 00:22:28]} 17.Ne2 {[%clk 00:59:55] [%emt 00:16:16]} 17...g6 
{[%clk 00:33:01] [%emt 00:08:52]} 18.f3 {[%clk 00:56:41] [%emt 00:03:44]} 
18...Bg7 {[%clk 00:29:10] [%emt 00:04:22]} 19.e4 {[%clk 00:51:39] [%emt
00:05:32]} 19...a4 {[%clk 00:26:09] [%emt 00:03:31]} 20.Qc1 {[%clk 00:50:34]
[%emt 00:01:34]} 20...Ncb5 {[%clk 00:23:09] [%emt 00:03:30]} 21.Bc2 {[%clk
00:43:22] [%emt 00:07:42]} 21...g5 {[%clk 00:16:26] [%emt 00:07:13]} 22.Rfe1 
{[%clk 00:24:40] [%emt 00:19:12]} 22...dxe4 {[%clk 00:04:13] [%emt 00:12:43]} 
23.fxe4 {[%clk 00:24:39] [%emt 00:00:31]} 23...Bb3 {[%clk 00:04:39] [%emt
00:00:04]} 24.Bxb3 {[%clk 00:15:52] [%emt 00:09:17]} 24...axb3 {[%clk 00:05:07]
[%emt 00:00:02]} 25.Qe3 {[%clk 00:15:51] [%emt 00:00:32]} 25...Qb6 {[%clk
00:03:37] [%emt 00:01:59]} 26.a4 {[%clk 00:15:20] [%emt 00:01:01]} 26...Rxa4 
{[%clk 00:01:12] [%emt 00:02:55]} 27.Qxb3 {[%clk 00:15:48] [%emt 00:00:02]} 
27...Qa5 {[%clk 00:01:08] [%emt 00:00:34]} 28.Rf1 {[%clk 00:08:37] [%emt
00:07:42]} 28...Rb4 {[%clk 00:01:04] [%emt 00:00:34]} 29.Qf3 {[%clk 00:08:37]
[%emt 00:00:29]} 29...Qa2 {[%clk 00:01:18] [%emt 00:00:16]} 30.Nc3 {[%clk
00:04:48] [%emt 00:04:19]} 30...Qe6 {[%clk 00:00:54] [%emt 00:00:54]} 31.d5 
{[%clk 00:04:16] [%emt 00:01:03]} 31...cxd5 {[%clk 00:00:35] [%emt 00:00:49]} 
32.exd5 {[%clk 00:04:23] [%emt 00:00:22]} 32...Qe7 {[%clk 00:00:53] [%emt
00:00:12]} 33.Rde1 {[%clk 00:02:16] [%emt 00:02:37]} 33...Nxc3 {[%clk 00:00:53]
[%emt 00:00:29]} 34.bxc3 {[%clk 00:01:14] [%emt 00:01:33]} 34...Re4 {[%clk
00:01:21] [%emt 00:00:02]} 35.Ng4 {[%clk 00:00:45] [%emt 00:00:59]} 35...Qd7 
{[%clk 00:00:35] [%emt 00:01:16]} 36.Nf6+ {[%clk 00:00:44] [%emt 00:00:31]} 
36...Bxf6 {[%clk 00:01:03] [%emt 00:00:01]} 37.Qxf6 {[%clk 00:01:07] [%emt
00:00:07]} 37...Rxe1 {[%clk 00:01:26] [%emt 00:00:08]} 38.Bxe1 {[%clk 00:00:41]
[%emt 00:00:56]} 38...Ne4 {[%clk 00:01:05] [%emt 00:00:51]} 39.Qd4 {[%clk
00:01:04] [%emt 00:00:06]} 39...b5 {[%clk 00:01:22] [%emt 00:00:14]} 40.Rf3 
{[%clk 00:00:38] [%emt 00:00:57]} 40...f5 {[%clk 00:00:45] [%emt 00:01:07]} 
41.Re3 {[%clk 00:39:22] [%emt 00:11:46]} 41...Rd8 {[%clk 00:44:55] [%emt
00:06:18]} 42.Rd3 {[%clk 00:38:30] [%emt 00:01:22]} 42...Qd6 {[%clk 00:37:08]
[%emt 00:08:17]} 43.g4 {[%clk 00:28:43] [%emt 00:10:17]} 1/2-1/2

[Event "FIDE Grand Swiss 2023"]
[Site "Villa Marina, Douglas, Isle of Man"]
[Date "2023.10.25"]
[Round "1.13"]
[White "Sargsyan, Shant"]
[Black "Abdusattorov, Nodirbek"]
[Result "0-1"]
[WhiteElo "2631"]
[BlackElo "2716"]
[EventDate "2023.10.25"]
[ECO "D27"]
[PlyCount "104"]
[BlackFideId "14204118"]
[TimeControl "40/100 + 20/50 + 15 + 30s/move"]
[WhiteFideId "13306766"]

1.d4 {[%clk 01:40:00] [%emt 00:00:59]} 1...d5 {[%clk 01:40:47] [%emt 00:00:13]} 
2.c4 {[%clk 01:40:08] [%emt 00:00:22]} 2...dxc4 {[%clk 01:40:35] [%emt
00:00:42]} 3.Nf3 {[%clk 01:40:07] [%emt 00:00:31]} 3...Nf6 {[%clk 01:40:24]
[%emt 00:00:41]} 4.e3 {[%clk 01:40:26] [%emt 00:00:11]} 4...e6 {[%clk 01:40:34]
[%emt 00:00:20]} 5.Bxc4 {[%clk 01:39:17] [%emt 00:01:40]} 5...c5 {[%clk
01:40:52] [%emt 00:00:12]} 6.O-O {[%clk 01:39:35] [%emt 00:00:12]} 6...a6 
{[%clk 01:41:09] [%emt 00:00:13]} 7.Be2 {[%clk 01:39:28] [%emt 00:00:36]} 
7...Nbd7 {[%clk 01:38:10] [%emt 00:03:29]} 8.b3 {[%clk 01:38:36] [%emt
00:01:22]} 8...b6 {[%clk 01:36:50] [%emt 00:01:51]} 9.Ne5 {[%clk 01:37:58] [%emt
00:01:08]} 9...Nxe5 {[%clk 01:34:30] [%emt 00:02:50]} 10.dxe5 {[%clk 01:38:12]
[%emt 00:00:16]} 10...Nd5 {[%clk 01:34:42] [%emt 00:00:17]} 11.Bb2 {[%clk
01:32:46] [%emt 00:05:56]} 11...Bb7 {[%clk 01:31:21] [%emt 00:03:51]} 12.Nd2 
{[%clk 01:27:00] [%emt 00:06:16]} 12...Qc7 {[%clk 01:31:16] [%emt 00:00:36]} 
13.Nc4 {[%clk 01:25:14] [%emt 00:02:16]} 13...Rd8 {[%clk 01:31:28] [%emt
00:00:18]} 14.Qc1 {[%clk 01:23:44] [%emt 00:02:00]} 14...b5 {[%clk 01:25:47]
[%emt 00:06:11]} 15.Nd6+ {[%clk 01:16:56] [%emt 00:07:17]} 15...Bxd6 {[%clk
01:25:32] [%emt 00:00:45]} 16.exd6 {[%clk 01:17:21] [%emt 00:00:06]} 16...Qxd6 
{[%clk 01:25:04] [%emt 00:00:57]} 17.a4 {[%clk 01:15:49] [%emt 00:02:02]} 
17...b4 {[%clk 01:12:39] [%emt 00:12:55]} 18.Rd1 {[%clk 01:12:39] [%emt
00:03:40]} 18...O-O {[%clk 01:09:52] [%emt 00:03:16]} 19.a5 {[%clk 01:12:32]
[%emt 00:00:37]} 19...Qe7 {[%clk 00:57:00] [%emt 00:13:22]} 20.Qc4 {[%clk
01:04:58] [%emt 00:08:05]} 20...Rd7 {[%clk 00:41:42] [%emt 00:15:49]} 21.Rac1 
{[%clk 01:01:17] [%emt 00:04:10]} 21...Rc8 {[%clk 00:42:10] [%emt 00:00:02]} 
22.h4 {[%clk 00:57:13] [%emt 00:04:34]} 22...Qd8 {[%clk 00:40:41] [%emt
00:01:59]} 23.e4 {[%clk 00:47:21] [%emt 00:10:22]} 23...Nf4 {[%clk 00:37:47]
[%emt 00:03:25]} 24.Rxd7 {[%clk 00:46:09] [%emt 00:01:42]} 24...Qxd7 {[%clk
00:37:48] [%emt 00:00:29]} 25.Bf1 {[%clk 00:45:41] [%emt 00:00:57]} 25...Qd2 
{[%clk 00:33:55] [%emt 00:04:22]} 26.Rc2 {[%clk 00:41:52] [%emt 00:04:20]} 
26...Qd1 {[%clk 00:34:06] [%emt 00:00:19]} 27.f3 {[%clk 00:34:45] [%emt
00:07:37]} 27...Qd8 {[%clk 00:19:43] [%emt 00:14:53]} 28.g3 {[%clk 00:32:20]
[%emt 00:02:55]} 28...Nh5 {[%clk 00:19:58] [%emt 00:00:15]} 29.Rg2 {[%clk
00:30:17] [%emt 00:02:32]} 29...Qxa5 {[%clk 00:17:00] [%emt 00:03:30]} 30.Qc1 
{[%clk 00:30:01] [%emt 00:00:45]} 30...Nf6 {[%clk 00:16:56] [%emt 00:00:34]} 
31.g4 {[%clk 00:26:58] [%emt 00:03:33]} 31...Qd8 {[%clk 00:13:23] [%emt
00:04:03]} 32.Qf4 {[%clk 00:18:54] [%emt 00:08:33]} 32...Nd7 {[%clk 00:11:32]
[%emt 00:02:22]} 33.Rd2 {[%clk 00:16:46] [%emt 00:02:38]} 33...Qe7 {[%clk
00:12:01] [%emt 00:00:02]} 34.g5 {[%clk 00:16:06] [%emt 00:01:09]} 34...a5 
{[%clk 00:10:49] [%emt 00:01:42]} 35.Rd6 {[%clk 00:06:25] [%emt 00:10:11]} 
35...a4 {[%clk 00:08:57] [%emt 00:02:23]} 36.Bb5 {[%clk 00:04:21] [%emt
00:02:34]} 36...a3 {[%clk 00:07:35] [%emt 00:01:52]} 37.Bxa3 {[%clk 00:03:04]
[%emt 00:01:46]} 37...bxa3 {[%clk 00:05:14] [%emt 00:02:51]} 38.Rxd7 {[%clk
00:03:29] [%emt 00:00:06]} 38...Qf8 {[%clk 00:05:39] [%emt 00:00:05]} 39.Rxb7 
{[%clk 00:01:36] [%emt 00:02:23]} 39...a2 {[%clk 00:04:59] [%emt 00:01:10]} 
40.Qe5 {[%clk 00:00:43] [%emt 00:01:23]} 40...Ra8 {[%clk 00:03:48] [%emt
00:01:40]} 41.Ba4 {[%clk 00:30:17] [%emt 00:20:56]} 41...Qc8 {[%clk 00:52:23]
[%emt 00:01:55]} 42.Rb5 {[%clk 00:23:29] [%emt 00:07:18]} 42...c4 {[%clk
00:52:08] [%emt 00:00:45]} 43.bxc4 {[%clk 00:09:14] [%emt 00:14:45]} 43...Rxa4 
{[%clk 00:52:06] [%emt 00:00:32]} 44.Qa1 {[%clk 00:09:36] [%emt 00:00:08]} 
44...Rxc4 {[%clk 00:51:51] [%emt 00:00:45]} 45.Kg2 {[%clk 00:08:38] [%emt
00:01:28]} 45...h5 {[%clk 00:47:37] [%emt 00:04:44]} 46.gxh6 {[%clk 00:08:02]
[%emt 00:01:07]} 46...gxh6 {[%clk 00:47:55] [%emt 00:00:12]} 47.Kh3 {[%clk
00:06:38] [%emt 00:01:54]} 47...Rc2 {[%clk 00:46:13] [%emt 00:02:11]} 48.Qe5 
{[%clk 00:05:05] [%emt 00:02:02]} 48...Kh7 {[%clk 00:45:38] [%emt 00:01:05]} 
49.Ra5 {[%clk 00:04:17] [%emt 00:01:19]} 49...Rf2 {[%clk 00:38:58] [%emt
00:07:10]} 50.Kg3 {[%clk 00:01:45] [%emt 00:03:03]} 50...Qc2 {[%clk 00:38:32]
[%emt 00:00:55]} 51.Kg4 {[%clk 00:00:43] [%emt 00:01:33]} 51...Rf1 {[%clk
00:37:40] [%emt 00:01:21]} 52.Kh5 {[%clk 00:00:31] [%emt 00:00:42]} 52...Qg2 
{[%clk 00:37:57] [%emt 00:00:13]} 0-1